Cogmind - Beta 12 @@@ ROGUE MODE // 2023.03.09 @ 04:39:58 Player: Zirov Result: Self-destructed Performance ------------- Evolutions (2) 1000 Regions Visited (5) 1000 Robots Destroyed (27) 135 Value Destroyed (644) 644 Prototype IDs (26) 520 Alien Tech Used (0) 0 Bonus (464) 464 TOTAL SCORE: 3763 Bonus ------- Follower Combat Kills 198 Aligned with FarCom 300 Friendly Fire -34 Cogmind --------- Core Integrity 425/550 Matter 300/300 Energy 125/125 System Corruption 0% Temperature Cool (0) Movement Walking (122) Location -8/Materials Parts ------- > --- POWER (1) -------- Light Ion Engine > --- PROPULSION (4) --- Aluminum Leg Aluminum Leg Aluminum Leg Titanium Leg > --- UTILITY (4) ------ Large Storage Unit Modified TNC System Shield > --- WEAPON (2) ------- Light Assault Rifle Makeshift Shrapnel Gun > --- INVENTORY (15) --- Ion Engine Light Nuclear Core Aluminum Leg High-capacity Storage Unit Experimental Sensor Array Improved Terrain Scan Processor Reaction Control System Mini Grenade Launcher Peak State ------------ > --- POWER ------------ Light Ion Engine > --- PROPULSION ------- Aluminum Leg Aluminum Leg Aluminum Leg Aluminum Leg > --- UTILITY ---------- Large Storage Unit Experimental Sensor Array Modified TNC Light Armor Plating > --- WEAPON ----------- Light Assault Rifle Makeshift Shrapnel Gun > --- INVENTORY -------- Ion Engine Light Nuclear Core High-capacity Storage Unit Seismic Detector System Shield Mini Grenade Launcher [Rating: 28] Favorites ----------- Power Light Ion Engine Engine Light Ion Engine Power Core Light Nuclear Core Propulsion Aluminum Leg Leg Aluminum Leg Utility Seismic Detector Device Seismic Detector Storage Medium Storage Unit Processor Modified TNC Hackware System Shield Protection Light Armor Plating Weapon Light Assault Rifle Ballistic Gun Light Assault Rifle Build | -11 -10 -10 -10 -9 -8 ------- Run | Jun Mat Min Exi Min Mat Slots Evolved 4 | . . . . . 4 Power . | . . . . . . Propulsion 2 | . . . . . 2 Utility 2 | . . . . . 2 Weapon . | . . . . . . Parts Attached 32 | 7 8 7 . . 10 Power 5 | 1 . 4 . . . Engine 4 | 1 . 3 . . . Core 1 | . . 1 . . . Reactor . | . . . . . . Propulsion 10 | 2 4 . . . 4 Treads . | . . . . . . Leg 10 | 2 4 . . . 4 Wheel . | . . . . . . Hover . | . . . . . . Flight . | . . . . . . Utility 10 | 2 1 1 . . 6 Device 4 | 1 . 1 . . 2 Storage 3 | 1 1 . . . 1 Processor 1 | . . . . . 1 Hackware 1 | . . . . . 1 Protection 1 | . . . . . 1 Artifact . | . . . . . . Weapon 7 | 2 3 2 . . . Energy Gun . | . . . . . . Energy Cannon . | . . . . . . Ballistic Gun 7 | 2 3 2 . . . Ballistic Cannon . | . . . . . . Launcher . | . . . . . . Special Weapon . | . . . . . . Impact Weapon . | . . . . . . Slashing Weapon . | . . . . . . Piercing Weapon . | . . . . . . Special Melee Weapon . | . . . . . . Unidentified Prototypes 1 | . . . . . 1 Parts Lost 4 | . . 1 . . 3 Power 1 | . . 1 . . . Propulsion 1 | . . . . . 1 Utility 2 | . . . . . 2 Weapon . | . . . . . . Highest Loss Streak 2 | . . 1 . . 2 To Critical Strikes . | . . . . . . Average Slot Usage (%) 99 | . 100 99 100 100 97 Engine 13 | . 14 13 14 14 9 Leg 28 | . 28 28 28 28 35 Device 13 | . 14 14 14 14 9 Storage 13 | . 14 14 14 14 9 Ballistic Gun 26 | . 28 27 28 28 18 Naked Turns . | . . . . . . Heaviest Build 30 | 12 20 22 17 17 30 Greatest Support 47 | 20 20 20 20 20 47 Greatest Overweight (x) 2 | 2 1 1 . . . Average Overweight (x) . | . . . . . . Largest Inventory Capacity 15 | 8 10 10 10 10 15 Average Capacity 10 | 7 9 10 10 10 14 Most Carried 10 | 1 10 10 10 10 9 Average Carried 7 | . 6 9 9 9 7 Final Capacity 15 | 8 10 10 10 10 15 Final Carried 10 | 1 10 10 10 10 8 Class Distribution -------------------- 50% | Scavenger-Mutant 49% | Mutant Dominant Class ---------------- Mutant | -10/Materials Mutant | -10/Mines Scavenger-Mutant | -10/Exiles Scavenger-Mutant | -9/Mines Scavenger-Mutant | -8/Materials Resources | -11 -10 -10 -10 -9 -8 ----------- Run | Jun Mat Min Exi Min Mat Matter Collected 942 | 256 304 123 . . 259 Remotely . | . . . . . . Salvage Created 902 | 94 482 70 . . 256 Parts 59 | 10 37 5 . . 7 Haulers Intercepted 1 | . 1 . . . . Recyclers Shooed 1 | . 1 . . . . Parts Field Recycled . | . . . . . . Retrieved Matter . | . . . . . . Parts Self-Destructed . | . . . . . . Prevented . | . . . . . . Kills | -11 -10 -10 -10 -9 -8 ------- Run | Jun Mat Min Exi Min Mat Combat Hostiles Destroyed 18 | . 10 2 . . 6 Guns 18 | . 10 2 . . 6 Classes Destroyed 10 | 2 4 . . . 4 Tunneler 2 | 2 . . . . . Hauler 1 | . 1 . . . . Recycler 3 | 1 2 . . . . Watcher 2 | . 2 . . . . Swarmer 6 | . 6 . . . . Grunt 9 | . 4 2 . . 3 Duelist 1 | . . . . . 1 Sentry 1 | . . . . . 1 Hunter 1 | . . . . . 1 Zionite 1 | . . . . . 1 Best Kill Streak 5 | 2 5 2 . . 4 Combat Bots Only 4 | . 3 2 . . 4 Max Kills in Single Turn 1 | 1 1 1 . . 1 Gunslinging . | . . . . . . Exploded . | . . . . . . Melee . | . . . . . . Uniques/NPCs Destroyed . | . . . . . . Combat | -11 -10 -10 -10 -9 -8 -------- Run | Jun Mat Min Exi Min Mat Damage Taken 1010 | . 357 102 . . 551 Core 200 | . 59 16 . . 125 Absorbed by Shields . | . . . . . . Core Remaining (%) 85 | 100 . . . 70 . Volleys Fired 88 | 12 43 4 . . 29 Largest 2 | 2 2 2 . . 2 Hottest 46 | 40 46 46 . . 44 Shots Fired 176 | 24 86 8 . . 58 Gun 176 | 24 86 8 . . 58 Cannon . | . . . . . . Launcher . | . . . . . . Special . | . . . . . . Kinetic 176 | 24 86 8 . . 58 Thermal . | . . . . . . Explosive . | . . . . . . Electromagnetic . | . . . . . . Robot Hit Streak 9 | 4 7 4 . . 9 Robot Miss Streak 6 | 3 6 4 . . 4 Penetration Max . | . . . . . . Secondary Targets 5 | . 4 . . . 1 Max Gunslinging Chain 1 | . 1 . . . 1 Shots Hit Robots 118 | 15 52 6 . . 45 Core Hits 61 | 5 25 4 . . 27 Critical Kills . | . . . . . . Critical Parts Destroyed . | . . . . . . Critical Strikes . | . . . . . . Melee Attacks . | . . . . . . Impact . | . . . . . . Slashing . | . . . . . . Piercing . | . . . . . . Sneak Attacks . | . . . . . . Combat Hostiles . | . . . . . . Follow-up Attacks . | . . . . . . Damage Inflicted 1488 | 152 518 93 . . 725 Guns 1488 | 152 518 93 . . 725 Cannons . | . . . . . . Explosions . | . . . . . . Melee . | . . . . . . Ramming . | . . . . . . Kinetic 1488 | 152 518 93 . . 725 Thermal . | . . . . . . Explosive . | . . . . . . Electromagnetic . | . . . . . . Impact . | . . . . . . Slashing . | . . . . . . Piercing . | . . . . . . Highest Corruption . | . . . . . . Average Corruption . | . . . . . . Corruption Purged . | . . . . . . Corruption Blocked . | . . . . . . Overload Shots . | . . . . . . Overflow Damage . | . . . . . . Projectiles . | . . . . . . Explosions . | . . . . . . Melee . | . . . . . . Knockbacks . | . . . . . . Impact . | . . . . . . Kinetic . | . . . . . . Secondary . | . . . . . . Self-Inflicted Damage . | . . . . . . Shots . | . . . . . . Rammed . | . . . . . . Targets Rammed . | . . . . . . Kicked . | . . . . . . Crushed . | . . . . . . Highest Temperature 12 | . 12 10 . . 8 Average Temperature 7 | . 9 7 . . 4 Received Heat Transfer 306 | . 87 57 . . 162 Siege Activations . | . . . . . . Robots Corrupted . | . . . . . . Combat Hostiles . | . . . . . . Parts Fried . | . . . . . . Impact Corruptions . | . . . . . . Robots Melted . | . . . . . . Combat Hostiles . | . . . . . . Parts Melted 2 | . . . . . 2 Heat Transferred . | . . . . . . Parts Sabotaged . | . . . . . . Parts Stolen . | . . . . . . Parts Stripped . | . . . . . . Power Chain Reactions . | . . . . . . Missiles Intercepted . | . . . . . . Alert | -11 -10 -10 -10 -9 -8 ------- Run | Jun Mat Min Exi Min Mat Peak Influence 308 | 15 308 85 . . 277 Initial 22 | . 9 22 . . . Average 82 | 6 107 45 . . 141 Maximum Alert Level 1 | . 1 . . . 1 Low Security (%) 93 | 100 89 100 . 100 84 Level 1 6 | . 10 . . . 15 Level 2 . | . . . . . . Level 3 . | . . . . . . Level 4 . | . . . . . . Level 5 . | . . . . . . High Security . | . . . . . . Max Security . | . . . . . . Squads Dispatched 1 | . . . . . 1 Investigation . | . . . . . . Extermination . | . . . . . . Reinforcement . | . . . . . . Assault . | . . . . . . Garrison 1 | . . . . . 1 Intercept . | . . . . . . Searches Triggered . | . . . . . . Construction Impeded . | . . . . . . Haulers Reinforced . | . . . . . . Active Scanning Responses . | . . . . . . Cargo Convoy Interrupts . | . . . . . . Stealth | -11 -10 -10 -10 -9 -8 --------- Run | Jun Mat Min Exi Min Mat Distress Signals 2 | . 1 . . . 1 Communications Jammed . | . . . . . . Distress Signals . | . . . . . . Times Spotted 34 | . 16 3 . . 15 Peak Tracking Total 5 | . 3 2 . . 5 Tactical Retreats . | . . . . . . Traps | -11 -10 -10 -10 -9 -8 ------- Run | Jun Mat Min Exi Min Mat Traps Triggered 1 | . 1 . . . . Indirectly . | . . . . . . Trap Hack Attempts . | . . . . . . Triggered . | . . . . . . Disarmed . | . . . . . . Reprogrammed . | . . . . . . Reused . | . . . . . . Traps Extracted . | . . . . . . Installed . | . . . . . . Triggered . | . . . . . . Machines | -11 -10 -10 -10 -9 -8 ---------- Run | Jun Mat Min Exi Min Mat Machines Disabled . | . . . . . . Max in Single Turn . | . . . . . . Machines Repaired . | . . . . . . Machines Sabotaged . | . . . . . . Overloaded Fab Kills . | . . . . . . Hacking | -11 -10 -10 -10 -9 -8 --------- Run | Jun Mat Min Exi Min Mat Machines Accessed 9 | . 8 . 1 . . Terminals 8 | . 8 . . . . Fabricators . | . . . . . . Repair Stations . | . . . . . . Recycling Units . | . . . . . . Scanalyzers . | . . . . . . Garrison Access . | . . . . . . Total Hacks 23 | . 22 . 1 . . Successful 8 | . 7 . 1 . . Failed 15 | . 15 . . . . Catastrophic 2 | . 2 . . . . Database Lockouts . | . . . . . . Manual 9 | . 8 . 1 . . Terminals 22 | . 22 . . . . Fabricators . | . . . . . . Repair Stations . | . . . . . . Recycling Units . | . . . . . . Scanalyzers . | . . . . . . Garrison Access . | . . . . . . Terminal Hacks 8 | . 7 . 1 . . Prototype ID Bank 1 | . 1 . . . . Branch Access Points 1 | . 1 . . . . Terminal Index 1 | . 1 . . . . Scanalyzer Index 1 | . 1 . . . . Locate Traps 1 | . 1 . . . . Registered Components 1 | . 1 . . . . Zone Layout 1 | . 1 . . . . EX-Prototype ID Bank 1 | . . . 1 . . Fabricator Hacks . | . . . . . . Repair Station Hacks . | . . . . . . Recycling Unit Hacks . | . . . . . . Scanalyzer . | . . . . . . Garrison Access Hacks . | . . . . . . Unauthorized Hacks . | . . . . . . Terminals . | . . . . . . Fabricators . | . . . . . . Repair Stations . | . . . . . . Recycling Units . | . . . . . . Scanalyzers . | . . . . . . Garrison Access . | . . . . . . Data Cores Recovered . | . . . . . . Used . | . . . . . . Hacking Detections 8 | . 8 . . . . Full Trace Events 1 | . 1 . . . . Feedback Events . | . . . . . . Feedback Blocked . | . . . . . . Robot Schematics Acquired . | . . . . . . Robots Built . | . . . . . . Authchips . | . . . . . . Time . | . . . . . . Total Robot Build Rating . | . . . . . . Part Schematics Acquired . | . . . . . . Parts Built . | . . . . . . Authchips . | . . . . . . Time . | . . . . . . Total Part Build Rating . | . . . . . . Parts Repaired . | . . . . . . Time . | . . . . . . Parts Recycled . | . . . . . . Recycled Matter . | . . . . . . Retrieved Matter . | . . . . . . Retrieved Components . | . . . . . . Parts Scanalyzed . | . . . . . . Part Schematics Acquired . | . . . . . . Parts Damaged . | . . . . . . Bothacking | -11 -10 -10 -10 -9 -8 ------------ Run | Jun Mat Min Exi Min Mat Used RIF Installer . | . . . . . . Robots Hacked . | . . . . . . Non-combat . | . . . . . . Combat . | . . . . . . Robot Hacks Applied . | . . . . . . Relay Couplers Released . | . . . . . . Fabnet Peak Effective % . | . . . . . . Robots Rewired . | . . . . . . Allies Hacked . | . . . . . . Hacks Repelled . | . . . . . . Allies | -11 -10 -10 -10 -9 -8 -------- Run | Jun Mat Min Exi Min Mat Total Allies 5 | . . 3 . 2 . Largest Group 3 | . . 3 1 3 3 Highest-Rated Group 55 | . . 40 16 55 55 Highest-Rated Ally 31 | . . 16 16 31 31 Total Orders . | . . . . . . Ally Attacks 38 | . . 10 . . 28 Total Damage 519 | . . 122 . . 397 Kills 8 | . . 2 . . 6 Allies Corrupted . | . . . . . . Allies Melted . | . . . . . . Intel | -11 -10 -10 -10 -9 -8 ------- Run | Jun Mat Min Exi Min Mat Robot Analysis Total . | . . . . . . Derelict Logs Recovered 2 | . . 1 . 1 . Drone Launches . | . . . . . . Drone Recoveries . | . . . . . . Exploration | -11 -10 -10 -10 -9 -8 ------------- Run | Jun Mat Min Exi Min Mat Turns Passed 2464 | 112 1096 624 304 102 226 Spaces Moved 1652 | 57 681 483 253 78 100 Core 7 | 7 . . . . . Treads . | . . . . . . Legs 1645 | 50 681 483 253 78 100 Wheels . | . . . . . . Hover . | . . . . . . Flight . | . . . . . . Fastest Speed 50 | 50 120 120 120 120 120 Average Speed 119 | 113 120 120 120 120 120 Slowest Speed 190 | 150 190 190 120 120 122 Overloaded Moves . | . . . . . . Propulsion Burnouts . | . . . . . . Robots Hopped . | . . . . . . Cave-ins Triggered . | . . . . . . Exploration Rate (%) 43 | 4 99 64 60 23 11 Regions Visited 5 Branch Regions 3 Pre-discovered Areas . | . . . . . . Known Exits Taken 1 | . 1 . . . . Unknown Exits Taken 4 | 1 . 1 1 1 . Scrap Searched 1 | . . . . 1 . Spaces Dug . | . . . . . . Terrain Destroyed . | . . . . . . Melee . | . . . . . . Projectile . | . . . . . . AOE . | . . . . . . Terrain Rammed . | . . . . . . Walls Destroyed . | . . . . . . Machines Disabled . | . . . . . . Actions | -11 -10 -10 -10 -9 -8 --------- Run | Jun Mat Min Exi Min Mat Total 1978 | 79 886 520 254 88 151 Wait 159 | 3 127 17 . 5 7 Move 1647 | 56 680 482 252 77 100 Hop . | . . . . . . Pick Up 27 | 1 14 4 1 3 4 Fast Attach 10 | 7 3 . . . . Attach 9 | . . 3 . . 6 Detach 2 | . 2 . . . . Swap 13 | . 5 4 . . 4 Drop 22 | . 12 5 1 3 1 Fire 88 | 12 43 4 . . 29 Melee . | . . . . . . Ram . | . . . . . . Kick . | . . . . . . Crush . | . . . . . . Escape Stasis . | . . . . . . Rewire 1 | . . 1 . . . Trap . | . . . . . . Miscellaneous . | . . . . . . Route ------- -11/Junkyard -10/Materials (discovered 4 exits: [*Mat x3] / *Min) -10/Mines -10/Exiles -9/Mines -8/Materials (discovered 1 exit: Fac) History --------- Turn | Location | Event 2 | -11/Junkyard | Met Revision 17 17 | -11/Junkyard | Discovered new exit (range 14) 113 | -11/Junkyard | Entered Materials 308 | -10/Materials | Build established: Mutant 515 | -10/Materials | Identified exit to Mines 664 | -10/Materials | Discovered new exit (range 11) 768 | -10/Materials | Build established: Scavenger-Mutant 901 | -10/Materials | Discovered new exit (range 7) 1044 | -10/Materials | Discovered new exit (range 10) 1126 | -10/Materials | Build established: Mutant 1209 | -10/Materials | Entered Mines 1235 | -10/Mines | Met a Derelict bent on vengeance 1257 | -10/Mines | Assisted by bots powering up and referring to "LRC-V3" 1280 | -10/Mines | Deemed a non-threat by the Exiles lab entrance 1280 | -10/Mines | Discovered new exit (range 5) 1360 | -10/Mines | A weapon hastily lodged in a ceiling crevice suddenly fell to the ground 1648 | -10/Mines | Joined a pair of Derelicts in attacking an 0b10 outpost 1681 | -10/Mines | Learned Materials emergency access door positions 1833 | -10/Mines | Entered Exiles 1833 | -10/Exiles | Accompanied by 1 ally 1846 | -10/Exiles | Build established: Scavenger-Mutant 1862 | -10/Exiles | Met 8R-AWN 1883 | -10/Exiles | Met EX-HEX 1915 | -10/Exiles | Met EX-BIN 1981 | -10/Exiles | Aligned with FarCom system 1982 | -10/Exiles | Given EX-Vault access code 2010 | -10/Exiles | Opened EX-Vault 2024 | -10/Exiles | Found Modified TNC 2047 | -10/Exiles | Warned to stay clear of 0b10 Research branches 2086 | -10/Exiles | Met EX-DEC 2128 | -10/Exiles | Discovered new exit (range 10) 2137 | -10/Exiles | Left Exiles lab with Modified TNC 2137 | -10/Exiles | Entered Mines 2137 | -9/Mines | Accompanied by 1 ally 2161 | -9/Mines | Found a damaged Exp. Sensor Array with a note attached 2164 | -9/Mines | Found Prototype Device 2202 | -9/Mines | Found a hidden stash of uninstalled traps 2226 | -9/Mines | Discovered new exit (range 8) 2239 | -9/Mines | Entered Materials 2239 | -8/Materials | Accompanied by 3 allies 2239 | -8/Materials | Evolved 4 slots: Propulsion x2, Utility x2 2240 | -8/Materials | Identified exit to Factory 2244 | -8/Materials | Led the pair of lost Derelicts to an unsafe place 2247 | -8/Materials | Identified Exp. Sensor Array 2377 | -8/Materials | Garrison activated, responded to threat 2465 | -8/Materials | Self-destructed Last Messages --------------- 02391_ Acquired 31 matter. 02419_ Lgt. Armor Plating destroyed. 02427_ K-01 Serf collects debris. 02429_ Aluminum Leg destroyed. 02431_ K-01 Serf collects debris. 02431_ L-31 Rogue destroyed. 02435_ K-01 Serf collects debris. 02437_ Y-45 Defender destroyed. 02438_ K-01 Serf collects debris. 02448_ G-47 Trooper destroyed. 02448_ Switching to secondary target: G-47 Trooper. 02454_ G-47 Trooper destroyed. 02457_ Acquired 44 matter. 02458_ Acquired 39 matter. 02460_ R-06 Scavenger collects Imp. Heat Sink. 02460_ K-01 Serf collects debris. 02461_ Seismic Detector destroyed. 02461_ Acquired Aluminum Leg. 02462_ Acquired 27 matter. 02463_ K-01 Serf collects debris. Map ----- +----------------------------------------------------+ | ?????????????????????????????????????????????????? | | ?????????????????????????????????????????????????? | | ?????????????????????????????????????????????????? | | ?????????????????????????????????????????????????? | | ?????????????????????????????????????????????????? | | ?????????????????????????????????????????????????? | | ?????????????????????????????????????????????????? | | ?????????????????????????????????????????????????? | | ?????????????????????????????????????????????????? | | ????????????????????????? ?????????????????????? | | ???????????????????????? ?????????????????????? | | ???????????????????????? u #????????????????????? | | ???????????????????????? a t#????????????????????? | | ????????????????????????# #????????????????????? | | ????????????????????????# g #????????????????????? | | ????????????????????????#g #????????????????????? | | ????????????????????????# #######??????????????? | | ?????????????????????#### # #?????????????? | | ????????????????????##! # #?????????????? | | ????????????????????#! # """ #?????????????? | | ????????????????????#! + """ #?????????????? | | ????????????????????#! # """ ??????????????? | | ????????????????????#! # ????????????????? | | ?????????????????????#! ##/########??????????? | | ????????????????????????# # w a = #????????? | | ????????????????????????#@%=# """"""" #????????? | | ????????????????????????# * # """""""????????????? | | ????????????????????????# * +%"""""""??????a?????? | | ????????????????????????# k# """"""?????????????? | | ????????????????????????#=%r# """""??????????????? | | ????????????????????##### # ??????????????? | | ????????????????????#!! ########?????????????? | | ????????????????????#!! #????????????????????? | | ????????????????????#!! #????????????????????? | | ????????????????????#!! | +????????????????????? | | ????????????????????#!! *%! #????????????????????? | | ????????????????????#!! % #????????????????????? | | ????????????????????##### = ##???????????????????? | | ????????? ############## ##################### | | ??????? w %!= %% | | ??????? [!%[ = ! | | ??????? == [ | | ???????? ########+#+### ###+#############+### | | ???????????????????????####### #??????# | | ?????????????????????????????# #??????# | | ?????????????????????????????# ""!!#??????# | | ?????????????????????????????# S""%*#??????# [ | | ?????????????????????????????# ""[= #??????# | | ?????????????????????????????# #??????# | | ?????????????????????????????#### ###??????####### | +----------------------------------------------------+ Best States ------------- Heat Dissipation 31 Energy Generation 10 Energy Capacity 125 Matter Stores 300 Matter Capacity 300 Sight Range 16 Robot Scan Range 20 Terrain Scan Density 10 Armor Coverage 150 Evasion (%) 55 Defensive Hacking 10 Item Schematics ----------------- None Robot Schematics ------------------ None Fabricated ------------ Nothing Alien Tech Used ----------------- None Achievements -------------- None Challenges ------------ None Game ------ Seed MyomerFactorySystem Manual? 0 Play Time 00:34:21 Cumulative 36.2 hours Start 2023.03.08 @ 23:34:03 End 2023.03.09 @ 04:39:58 Sessions 5 Manual Loads 0 Difficulty Rogue Special Mode None Game No. 38 Rogue 38 Adventurer 0 Explorer 0 Win Type - Total 0 Types 0/0/0/0/0/0/0/0/0 Lore% 24 Gallery% 29 Achievement% 22 Wizard Run 0 Options --------- ASCII 1 Keyboard 1 Movement Numpad Keybinds 0 Fullscreen 1 Font 18/SmallcapsGlow Map View 76x50 Tactical HUD 1 Map Filters NONE Filters NONE Steam 1 RUN: ccabe10d-089a-44fe-9667-f3c9f79617f5